[Event "ONJK 2024 ABC"]
[Site "Velp, Netherlands"]
[Date "2024.08.02"]
[Round "1.7"]
[White "Hagen, Carlijn"]
[Black "Blok, Xaveer"]
[Result "0-1"]
[TimeControl "90 minutes + 30 seconds"]
[WhiteElo "1645"]
[BlackElo "1885"]

1. d4 {[%clk 01:30:57]} {[%emt 00:00:02]} d5 {[%clk 01:30:54]} {[%emt
00:00:07]} 2. Bf4 {[%clk 01:31:20]} {[%emt 00:00:07]} c5 {[%clk 01:31:06]}
{[%emt 00:00:17]} 3. e3 {[%clk 01:31:45]} {[%emt 00:00:05]} Nc6 {[%clk
01:31:31]} {[%emt 00:00:06]} 4. c3 {[%clk 01:32:08]} {[%emt 00:00:08]} Bf5
{[%clk 01:30:31]} {[%emt 00:01:29]} 5. Nf3 {[%clk 01:32:14]} {[%emt 00:00:24]}
e6 {[%clk 01:30:17]} {[%emt 00:00:44]} 6. Bd3 {[%clk 01:31:34]} {[%emt
00:01:10]} Bxd3 {[%clk 01:30:02]} {[%emt 00:00:43]} 7. Qxd3 {[%clk 01:31:56]}
{[%emt 00:00:08]} Nf6 {[%clk 01:30:20]} {[%emt 00:00:12]} 8. Nbd2 {[%clk
01:32:00]} {[%emt 00:00:26]} Bd6 {[%clk 01:29:43]} {[%emt 00:01:08]} 9. Bg3
{[%clk 01:31:17]} {[%emt 00:01:13]} O-O {[%clk 01:29:53]} {[%emt 00:00:19]} 10.
Ne5 {[%clk 01:30:23]} {[%emt 00:01:25]} Be7 {[%clk 01:28:17]} {[%emt 00:02:05]}
11. Ndf3 {[%clk 01:30:27]} {[%emt 00:00:26]} Nd7 {[%clk 01:25:57]} {[%emt
00:02:50]} 12. h4 {[%clk 01:27:46]} {[%emt 00:03:11]} h6 {[%clk 01:18:40]}
{[%emt 00:07:46]} 13. h5 {[%clk 01:26:04]} {[%emt 00:02:13]} Rc8 {[%clk
01:14:17]} {[%emt 00:04:54]} 14. Nxd7 {[%clk 01:22:13]} {[%emt 00:04:21]} Qxd7
{[%clk 01:14:08]} {[%emt 00:00:37]} 15. O-O {[%clk 01:22:30]} {[%emt 00:00:14]}
Rfd8 {[%clk 01:12:18]} {[%emt 00:02:20]} 16. Rad1 {[%clk 01:18:36]} {[%emt
00:04:25]} c4 {[%clk 01:11:58]} {[%emt 00:00:50]} 17. Qe2 {[%clk 01:17:22]}
{[%emt 00:01:44]} b5 {[%clk 01:11:09]} {[%emt 00:01:19]} 18. Kh1 {[%clk
01:12:11]} {[%emt 00:05:41]} b4 {[%clk 01:06:49]} {[%emt 00:04:50]} 19. Qc2
{[%clk 01:05:47]} {[%emt 00:06:54]} Qe8 {[%clk 01:01:59]} {[%emt 00:05:19]} 20.
Ng1 {[%clk 01:03:38]} {[%emt 00:02:39]} a5 {[%clk 01:00:59]} {[%emt 00:01:29]}
21. Ra1 {[%clk 00:59:08]} {[%emt 00:05:00]} Bd6 {[%clk 00:58:43]} {[%emt
00:02:47]} 22. Bxd6 {[%clk 00:57:38]} {[%emt 00:02:00]} Rxd6 {[%clk 00:59:02]}
{[%emt 00:00:10]} 23. Nh3 {[%clk 00:57:45]} {[%emt 00:00:23]} Rb8 {[%clk
00:58:12]} {[%emt 00:01:19]} 24. b3 {[%clk 00:56:46]} {[%emt 00:01:31]} cxb3
{[%clk 00:53:38]} {[%emt 00:05:04]} 25. axb3 {[%clk 00:57:03]} {[%emt
00:00:13]} Rdd8 {[%clk 00:51:37]} {[%emt 00:02:30]} 26. Rfc1 {[%clk 00:56:35]}
{[%emt 00:00:58]} bxc3 {[%clk 00:49:18]} {[%emt 00:02:50]} 27. Qxc3 {[%clk
00:56:57]} {[%emt 00:00:09]} Rdc8 {[%clk 00:47:38]} {[%emt 00:02:09]} 28. Qb2
{[%clk 00:52:38]} {[%emt 00:04:49]} Qe7 {[%clk 00:45:40]} {[%emt 00:02:28]} 29.
Nf4 {[%clk 00:50:24]} {[%emt 00:02:44]} Rb5 {[%clk 00:35:55]} {[%emt 00:10:15]}
30. Rc2 {[%clk 00:45:42]} {[%emt 00:05:13]} Qb7 {[%clk 00:34:46]} {[%emt
00:01:39]} 31. Rb1 {[%clk 00:44:54]} {[%emt 00:01:18]} a4 {[%clk 00:34:25]}
{[%emt 00:00:50]} 32. Rc3 {[%clk 00:45:01]} {[%emt 00:00:24]} Rb8 {[%clk
00:32:01]} {[%emt 00:02:53]} 33. Nd3 {[%clk 00:43:19]} {[%emt 00:02:12]} Rxb3
{[%clk 00:31:33]} {[%emt 00:00:59]} 34. Rxb3 {[%clk 00:43:42]} {[%emt
00:00:07]} Qxb3 {[%clk 00:31:57]} {[%emt 00:00:06]} 35. Qxb3 {[%clk 00:43:58]}
{[%emt 00:00:14]} Rxb3 {[%clk 00:30:12]} {[%emt 00:02:15]} 36. Rxb3 {[%clk
00:44:15]} {[%emt 00:00:14]} axb3 {[%clk 00:30:37]} {[%emt 00:00:05]} 37. Kg1
{[%clk 00:44:09]} {[%emt 00:00:36]} Na5 {[%clk 00:30:41]} {[%emt 00:00:26]} 38.
g4 {[%clk 00:43:54]} {[%emt 00:00:45]} Nc4 {[%clk 00:31:00]} {[%emt 00:00:11]}
39. Kg2 {[%clk 00:44:14]} {[%emt 00:00:09]} b2 {[%clk 00:31:19]} {[%emt
00:00:12]} 40. Nxb2 {[%clk 00:44:38]} {[%emt 00:00:06]} Nxb2 {[%emt 00:00:04]}
41. Kg3 {[%clk 00:45:00]} {[%emt 00:00:08]} f6 {[%clk 00:31:15]} {[%emt
00:01:00]} 42. f4 {[%clk 00:45:10]} {[%emt 00:00:20]} Nc4 {[%clk 00:31:16]}
{[%emt 00:00:30]} 43. Kf3 {[%clk 00:45:31]} {[%emt 00:00:08]} Kf7 {[%clk
00:31:33]} {[%emt 00:00:13]} 44. Ke2 {[%clk 00:45:48]} {[%emt 00:00:14]} f5
{[%clk 00:31:12]} {[%emt 00:00:51]} 45. g5 {[%clk 00:46:11]} {[%emt 00:00:07]}
Nd6 {[%clk 00:31:14]} {[%emt 00:00:28]} 46. g6+ {[%clk 00:46:21]} {[%emt
00:00:19]} Ke7 {[%clk 00:31:33]} {[%emt 00:00:11]} 47. Kf3 {[%clk 00:46:43]}
{[%emt 00:00:08]} Ne4 {[%clk 00:31:53]} {[%emt 00:00:10]} 48. Kg2 {[%clk
00:46:55]} {[%emt 00:00:18]} Nf6 {[%clk 00:32:11]} {[%emt 00:00:12]} 49. Kh3
{[%clk 00:47:08]} {[%emt 00:00:17]} Nxh5 {[%clk 00:32:34]} {[%emt 00:00:07]} 50.
Kh4 {[%clk 00:47:25]} {[%emt 00:00:14]} Nf6 {[%clk 00:32:55]} {[%emt 00:00:09]}
51. Kg3 {[%clk 00:47:38]} {[%emt 00:00:17]} Ng8 {[%clk 00:33:12]} {[%emt
00:00:12]} 0-1

[Event "ONJK 2024 ABC"]
[Site "Velp, Netherlands"]
[Date "2024.08.02"]
[Round "1.8"]
[White "Musabayev, Maxim"]
[Black "Zootjes, Aaron"]
[Result "1-0"]
[TimeControl "90 minutes + 30 seconds"]
[WhiteElo "1824"]
[BlackElo "1639"]

1. e4 {[%clk 01:30:57]} {[%emt 00:00:03]} c5 {[%clk 01:30:54]} {[%emt
00:00:06]} 2. Nf3 {[%clk 01:31:21]} {[%emt 00:00:07]} d6 {[%clk 01:31:17]}
{[%emt 00:00:07]} 3. d4 {[%clk 01:31:47]} {[%emt 00:00:04]} cxd4 {[%clk
01:31:42]} {[%emt 00:00:06]} 4. Nxd4 {[%clk 01:32:12]} {[%emt 00:00:04]} Nf6
{[%clk 01:32:04]} {[%emt 00:00:07]} 5. Nc3 {[%clk 01:32:37]} {[%emt 00:00:05]}
a6 {[%clk 01:32:24]} {[%emt 00:00:11]} 6. Be3 {[%clk 01:22:33]} {[%emt
00:10:34]} e5 {[%clk 01:31:53]} {[%emt 00:01:00]} 7. Nb3 {[%clk 01:21:40]}
{[%emt 00:01:23]} Be7 {[%clk 01:28:53]} {[%emt 00:03:30]} 8. Be2 {[%clk
01:19:02]} {[%emt 00:03:09]} Nc6 {[%clk 01:28:05]} {[%emt 00:01:18]} 9. Qd2
{[%clk 01:18:30]} {[%emt 00:01:02]} Be6 {[%clk 01:26:25]} {[%emt 00:02:11]} 10.
O-O {[%clk 01:13:49]} {[%emt 00:05:11]} O-O {[%clk 01:26:15]} {[%emt 00:00:40]}
11. Rad1 {[%clk 01:14:09]} {[%emt 00:00:09]} Rc8 {[%clk 01:21:20]} {[%emt
00:05:26]} 12. Kh1 {[%clk 01:08:11]} {[%emt 00:06:28]} b5 {[%clk 01:17:56]}
{[%emt 00:03:54]} 13. f3 {[%clk 01:03:00]} {[%emt 00:05:41]} Qd7 {[%clk
01:06:03]} {[%emt 00:12:23]} 14. Qe1 {[%clk 01:00:10]} {[%emt 00:03:19]} Nb4
{[%clk 01:00:57]} {[%emt 00:05:37]} 15. Rd2 {[%clk 00:57:13]} {[%emt 00:03:27]}
d5 {[%clk 00:59:44]} {[%emt 00:01:43]} 16. f4 {[%clk 00:55:46]} {[%emt
00:01:57]} Qb7 {[%emt 00:06:19]} 17. fxe5 {[%clk 00:42:57]} {[%emt 00:13:16]}
Nxe4 {[%clk 00:53:18]} {[%emt 00:01:10]} 18. Nxe4 {[%clk 00:42:10]} {[%emt
00:01:16]} dxe4 {[%clk 00:53:42]} {[%emt 00:00:07]} 19. Qb1 {[%clk 00:40:10]}
{[%emt 00:02:31]} Nd5 {[%clk 00:42:16]} {[%emt 00:11:55]} 20. Bd4 {[%clk
00:37:54]} {[%emt 00:02:45]} Bg5 {[%clk 00:40:52]} {[%emt 00:01:54]} 21. Rdd1
{[%clk 00:36:53]} {[%emt 00:01:31]} Be3 {[%clk 00:39:57]} {[%emt 00:01:26]} 22.
c3 {[%clk 00:30:24]} {[%emt 00:07:00]} Bxd4 {[%clk 00:37:56]} {[%emt 00:02:30]}
23. Rxd4 {[%clk 00:29:32]} {[%emt 00:01:22]} Ne3 {[%clk 00:33:11]} {[%emt
00:05:15]} 24. Re1 {[%clk 00:27:07]} {[%emt 00:02:55]} Nf5 {[%clk 00:30:11]}
{[%emt 00:03:30]} 25. Rxe4 {[%clk 00:22:46]} {[%emt 00:04:51]} Bd5 {[%clk
00:30:03]} {[%emt 00:00:38]} 26. Bf3 {[%clk 00:22:51]} {[%emt 00:00:25]} Ne7
{[%clk 00:19:41]} {[%emt 00:10:52]} 27. Rh4 {[%clk 00:21:28]} {[%emt 00:01:52]}
Ng6 {[%clk 00:19:33]} {[%emt 00:00:37]} 28. Bxd5 {[%clk 00:19:37]} {[%emt
00:02:21]} Qxd5 {[%clk 00:19:55]} {[%emt 00:00:09]} 29. Rd4 {[%clk 00:19:50]}
{[%emt 00:00:16]} Qb7 {[%clk 00:13:45]} {[%emt 00:06:40]} 30. Qf5 {[%clk
00:17:50]} {[%emt 00:02:30]} Rfd8 {[%clk 00:11:27]} {[%emt 00:02:49]} 31. e6
{[%clk 00:16:23]} {[%emt 00:01:56]} Rf8 {[%clk 00:08:08]} {[%emt 00:03:49]} 32.
Nc5 {[%clk 00:13:46]} {[%emt 00:03:07]} Qe7 {[%clk 00:05:41]} {[%emt 00:02:57]}
33. exf7+ {[%clk 00:12:39]} {[%emt 00:01:37]} Qxf7 {[%clk 00:05:52]} {[%emt
00:00:20]} 34. Qxf7+ {[%clk 00:12:53]} {[%emt 00:00:15]} Rxf7 {[%clk 00:06:17]}
{[%emt 00:00:05]} 35. Nxa6 {[%clk 00:13:06]} {[%emt 00:00:18]} Rf2 {[%clk
00:06:20]} {[%emt 00:00:26]} 36. Rb1 {[%clk 00:10:18]} {[%emt 00:03:18]} Re8
{[%clk 00:06:32]} {[%emt 00:00:17]} 37. b4 {[%clk 00:05:12]} {[%emt 00:05:36]}
Ree2 {[%clk 00:04:53]} {[%emt 00:02:09]} 38. Rd8+ {[%clk 00:04:23]} {[%emt
00:01:19]} Kf7 {[%clk 00:05:16]} {[%emt 00:00:07]} 39. Nc7 {[%clk 00:03:40]}
{[%emt 00:01:12]} Rxg2 {[%clk 00:05:28]} {[%emt 00:00:18]} 40. Rf1+ {[%clk
00:03:23]} {[%emt 00:00:47]} Ke7 {[%clk 00:05:43]} {[%emt 00:00:14]} 41. Re8+
{[%clk 00:03:21]} {[%emt 00:00:33]} Kd6 {[%clk 00:05:26]} {[%emt 00:00:47]} 42.
Nxb5+ {[%clk 00:03:22]} {[%emt 00:00:29]} Kd5 {[%clk 00:04:34]} {[%emt
00:01:22]} 43. Rf5+ {[%clk 00:01:51]} {[%emt 00:02:02]} Kc4 {[%clk 00:04:10]}
{[%emt 00:00:55]} 44. Rc5+ {[%clk 00:01:49]} {[%emt 00:00:32]} Kd3 {[%clk
00:04:21]} {[%emt 00:00:19]} 45. Rd5+ {[%clk 00:01:55]} {[%emt 00:00:24]} Kc4
{[%clk 00:03:13]} {[%emt 00:01:38]} 46. Rc5+ {[%clk 00:02:24]} {[%emt
00:00:01]} Kd3 {[%clk 00:03:21]} {[%emt 00:00:21]} 47. Rd8+ {[%clk 00:02:15]}
{[%emt 00:00:39]} Kc2 {[%clk 00:03:37]} {[%emt 00:00:14]} 48. Nd4+ {[%clk
00:02:32]} {[%emt 00:00:13]} 1-0

[Event "ONJK 2024 ABC"]
[Site "Velp, Netherlands"]
[Date "2024.08.02"]
[Round "1.9"]
[White "Balde, Esko"]
[Black "Kool, Jesper"]
[Result "1/2-1/2"]
[TimeControl "90 minutes + 30 seconds"]
[WhiteElo "1637"]
[BlackElo "1823"]

1. d4 {[%clk 01:30:58]} {[%emt 00:00:03]} d5 {[%clk 01:30:57]} {[%emt
00:00:03]} 2. c4 {[%clk 01:31:24]} {[%emt 00:00:04]} e6 {[%clk 01:31:22]}
{[%emt 00:00:04]} 3. Nf3 {[%clk 01:31:51]} {[%emt 00:00:04]} c5 {[%clk
01:31:44]} {[%emt 00:00:07]} 4. cxd5 {[%clk 01:32:00]} {[%emt 00:00:22]} exd5
{[%clk 01:32:07]} {[%emt 00:00:08]} 5. Nc3 {[%clk 01:31:14]} {[%emt 00:01:16]}
Nf6 {[%clk 01:31:32]} {[%emt 00:01:04]} 6. Bg5 {[%clk 01:29:33]} {[%emt
00:02:11]} Be6 {[%clk 01:31:18]} {[%emt 00:00:44]} 7. e4 {[%clk 01:21:23]}
{[%emt 00:08:40]} Be7 {[%clk 01:22:45]} {[%emt 00:09:02]} 8. exd5 {[%clk
00:56:10]} {[%emt 00:25:43]} Nxd5 {[%clk 01:19:32]} {[%emt 00:03:44]} 9. Bb5+
{[%clk 00:47:38]} {[%emt 00:09:02]} Nc6 {[%clk 01:18:35]} {[%emt 00:01:26]} 10.
Bxe7 {[%emt 00:01:18]} Qxe7 {[%clk 01:18:39]} {[%emt 00:00:18]} 11. O-O {[%clk
00:45:42]} {[%emt 00:01:47]} O-O {[%clk 01:17:46]} {[%emt 00:01:23]} 12. Nxd5
{[%clk 00:41:13]} {[%emt 00:04:59]} Bxd5 {[%clk 01:18:05]} {[%emt 00:00:11]} 13.
Re1 {[%clk 00:40:42]} {[%emt 00:01:01]} Qf6 {[%clk 01:17:43]} {[%emt 00:00:52]}
14. Bxc6 {[%clk 00:39:33]} {[%emt 00:01:39]} Bxc6 {[%clk 01:17:27]} {[%emt
00:00:47]} 15. Ne5 {[%clk 00:36:35]} {[%emt 00:03:27]} Rad8 {[%clk 01:16:33]}
{[%emt 00:01:23]} 16. Qc2 {[%clk 00:27:16]} {[%emt 00:09:50]} Rxd4 {[%clk
01:15:11]} {[%emt 00:01:52]} 17. Qxc5 {[%clk 00:25:14]} {[%emt 00:02:31]} Rd5
{[%clk 00:58:22]} {[%emt 00:17:20]} 18. Qc3 {[%clk 00:21:54]} {[%emt 00:03:50]}
Rd6 {[%clk 00:52:48]} {[%emt 00:06:04]} 19. Nxc6 {[%clk 00:21:34]} {[%emt
00:00:50]} Rxc6 {[%clk 00:51:49]} {[%emt 00:01:28]} 20. Qxf6 {[%clk 00:21:58]}
{[%emt 00:00:07]} 1/2-1/2

[Event "ONJK 2024 ABC"]
[Site "Velp, Netherlands"]
[Date "2024.08.02"]
[Round "1.10"]
[White "Van Groning, Christian"]
[Black "Zhezheria, Maksym"]
[Result "0-1"]
[TimeControl "90 minutes + 30 seconds"]
[WhiteElo "1778"]
[BlackElo "1626"]

1. e4 {[%clk 01:30:58]} {[%emt 00:00:01]} e6 {[%clk 01:30:55]} {[%emt
00:00:06]} 2. d4 {[%clk 01:31:22]} {[%emt 00:00:07]} d5 {[%clk 01:31:20]}
{[%emt 00:00:05]} 3. e5 {[%clk 01:31:44]} {[%emt 00:00:07]} c5 {[%clk
01:31:46]} {[%emt 00:00:04]} 4. c3 {[%clk 01:32:05]} {[%emt 00:00:10]} Nc6
{[%clk 01:32:10]} {[%emt 00:00:05]} 5. Nf3 {[%clk 01:32:28]} {[%emt 00:00:08]}
Qb6 {[%clk 01:32:34]} {[%emt 00:00:06]} 6. Be2 {[%clk 01:32:00]} {[%emt
00:00:58]} Nh6 {[%clk 01:32:49]} {[%emt 00:00:15]} 7. Bxh6 {[%clk 01:31:15]}
{[%emt 00:01:14]} Qxb2 {[%clk 01:32:36]} {[%emt 00:00:43]} 8. Bxg7 {[%clk
01:21:05]} {[%emt 00:10:40]} Bxg7 {[%clk 01:31:35]} {[%emt 00:01:31]} 9. Nbd2
{[%clk 01:20:46]} {[%emt 00:00:49]} Qxc3 {[%clk 01:31:54]} {[%emt 00:00:11]} 10.
Rc1 {[%clk 01:21:03]} {[%emt 00:00:13]} Qa5 {[%clk 01:31:57]} {[%emt 00:00:27]}
11. dxc5 {[%clk 01:20:36]} {[%emt 00:00:57]} Nxe5 {[%clk 01:31:16]} {[%emt
00:01:10]} 12. Nxe5 {[%clk 01:20:23]} {[%emt 00:00:44]} Bxe5 {[%clk 01:31:45]}
{[%emt 00:00:02]} 13. Qb3 {[%clk 01:20:18]} {[%emt 00:00:34]} Bd7 {[%clk
01:31:56]} {[%emt 00:00:19]} 14. Rc2 {[%clk 01:16:50]} {[%emt 00:03:57]} Bc6
{[%clk 01:31:14]} {[%emt 00:01:14]} 15. Qe3 {[%clk 01:15:44]} {[%emt 00:01:34]}
Bf6 {[%clk 01:30:24]} {[%emt 00:01:21]} 16. Bh5 {[%clk 01:13:40]} {[%emt
00:02:33]} Rf8 {[%clk 01:29:13]} {[%emt 00:01:42]} 17. Qxe6+ {[%clk 01:13:22]}
{[%emt 00:00:47]} Be7 {[%clk 01:29:27]} {[%emt 00:00:17]} 18. O-O {[%clk
01:13:25]} {[%emt 00:00:27]} Qc7 {[%clk 01:26:15]} {[%emt 00:03:41]} 19. Re1
{[%clk 01:12:54]} {[%emt 00:01:02]} Qd7 {[%clk 01:25:39]} {[%emt 00:01:06]} 20.
Qe5 {[%clk 01:10:23]} {[%emt 00:02:59]} O-O-O {[%clk 01:22:50]} {[%emt
00:03:21]} 21. Qxe7 {[%clk 01:10:00]} {[%emt 00:00:52]} Qf5 {[%clk 01:23:02]}
{[%emt 00:00:19]} 22. Ne4 {[%clk 01:00:51]} {[%emt 00:09:39]} dxe4 {[%clk
01:12:53]} {[%emt 00:10:40]} 23. Qh4 {[%clk 00:59:40]} {[%emt 00:01:40]} Qd5
{[%clk 01:13:14]} {[%emt 00:00:08]} 24. Bg4+ {[%clk 00:59:06]} {[%emt
00:01:05]} Kb8 {[%clk 01:13:25]} {[%emt 00:00:20]} 25. Rcc1 {[%clk 00:58:28]}
{[%emt 00:01:04]} e3 {[%clk 01:09:37]} {[%emt 00:04:20]} 26. Qg3+ {[%clk
00:53:59]} {[%emt 00:05:00]} Ka8 {[%clk 01:09:57]} {[%emt 00:00:10]} 27. fxe3
{[%clk 00:52:25]} {[%emt 00:02:04]} Qxa2 {[%clk 01:10:06]} {[%emt 00:00:22]} 28.
Rcd1 {[%clk 00:52:01]} {[%emt 00:00:53]} Rd2 {[%clk 01:10:13]} {[%emt
00:00:22]} 29. Bf3 {[%clk 00:51:50]} {[%emt 00:00:42]} Bxf3 {[%clk 01:04:44]}
{[%emt 00:06:00]} 30. Qxf3 {[%clk 00:50:52]} {[%emt 00:01:26]} Rg8 {[%clk
01:02:26]} {[%emt 00:02:48]} 31. Rxd2 {[%clk 00:49:41]} {[%emt 00:01:42]} Qxd2
{[%clk 01:01:50]} {[%emt 00:01:06]} 32. Rb1 {[%clk 00:49:36]} {[%emt 00:00:30]}
Qd7 {[%clk 01:01:46]} {[%emt 00:00:39]} 33. Qe4 {[%clk 00:48:09]} {[%emt
00:01:57]} f5 {[%clk 00:56:27]} {[%emt 00:05:50]} 34. Qf3 {[%clk 00:46:24]}
{[%emt 00:02:12]} Qc6 {[%clk 00:56:10]} {[%emt 00:00:49]} 35. Qxc6 {[%clk
00:46:10]} {[%emt 00:00:44]} bxc6 {[%clk 00:56:39]} {[%emt 00:00:02]} 36. Kf2
{[%clk 00:46:21]} {[%emt 00:00:18]} Rd8 {[%clk 00:56:48]} {[%emt 00:00:21]} 37.
Kf3 {[%clk 00:46:22]} {[%emt 00:00:29]} Rd5 {[%clk 00:57:09]} {[%emt 00:00:09]}
38. Rc1 {[%clk 00:46:34]} {[%emt 00:00:17]} a5 {[%clk 00:57:11]} {[%emt
00:00:29]} 39. h4 {[%clk 00:44:21]} {[%emt 00:02:43]} Ka7 {[%clk 00:57:10]}
{[%emt 00:00:31]} 40. e4 {[%clk 00:44:29]} {[%emt 00:00:22]} fxe4+ {[%clk
00:57:35]} {[%emt 00:00:05]} 41. Kxe4 {[%clk 00:44:49]} {[%emt 00:00:10]} Ka6
{[%clk 00:57:12]} {[%emt 00:00:53]} 42. g4 {[%clk 00:45:00]} {[%emt 00:00:19]}
h6 {[%clk 00:57:36]} {[%emt 00:00:06]} 43. Kf4 {[%clk 00:45:15]} {[%emt
00:00:12]} a4 {[%clk 00:52:52]} {[%emt 00:05:17]} 44. g5 {[%clk 00:45:15]}
{[%emt 00:00:30]} Rd4+ {[%clk 00:53:09]} {[%emt 00:00:14]} 45. Kg3 {[%clk
00:45:11]} {[%emt 00:00:16]} hxg5 {[%clk 00:53:20]} {[%emt 00:00:37]} 46. hxg5
{[%clk 00:45:32]} {[%emt 00:00:08]} Kb5 {[%clk 00:53:39]} {[%emt 00:00:11]} 47.
g6 {[%clk 00:45:37]} {[%emt 00:00:16]} a3 {[%clk 00:53:48]} {[%emt 00:00:29]}
48. g7 {[%clk 00:44:58]} {[%emt 00:01:09]} Rd8 {[%clk 00:54:11]} {[%emt
00:00:08]} 49. Kf4 {[%clk 00:45:19]} {[%emt 00:00:07]} Rg8 {[%clk 00:54:33]}
{[%emt 00:00:10]} 50. Rg1 {[%clk 00:45:36]} {[%emt 00:00:12]} a2 {[%clk
00:52:38]} {[%emt 00:02:26]} 51. Ke5 {[%clk 00:45:28]} {[%emt 00:00:37]} Rxg7
{[%clk 00:52:48]} {[%emt 00:00:20]} 52. Ra1 {[%clk 00:45:00]} {[%emt 00:00:59]}
Ra7 {[%clk 00:52:51]} {[%emt 00:00:27]} 53. Kd4 {[%clk 00:44:28]} {[%emt
00:01:01]} Ra4+ {[%clk 00:53:16]} {[%emt 00:00:06]} 54. Kc3 {[%clk 00:44:50]}
{[%emt 00:00:06]} Kxc5 {[%clk 00:53:28]} {[%emt 00:00:19]} 55. Kb3 {[%clk
00:44:49]} {[%emt 00:00:31]} Kb5 {[%clk 00:51:53]} {[%emt 00:02:05]} 56. Kc3
{[%clk 00:43:59]} {[%emt 00:01:20]} c5 {[%clk 00:51:57]} {[%emt 00:00:26]} 57.
Kb3 {[%clk 00:44:15]} {[%emt 00:00:14]} c4+ {[%clk 00:51:44]} {[%emt 00:00:43]}
58. Kc3 {[%clk 00:44:37]} {[%emt 00:00:08]} Ra3+ {[%clk 00:51:57]} {[%emt
00:00:18]} 59. Kb2 {[%clk 00:44:46]} {[%emt 00:00:21]} Kb4 {[%clk 00:52:21]}
{[%emt 00:00:06]} 60. Kc2 {[%clk 00:44:38]} {[%emt 00:00:37]} c3 {[%clk
00:52:12]} {[%emt 00:00:39]} 61. Kd1 {[%clk 00:44:49]} {[%emt 00:00:19]} Kb3
{[%clk 00:52:22]} {[%emt 00:00:21]} 62. Kc1 {[%clk 00:45:13]} {[%emt 00:00:05]}
c2 {[%clk 00:52:44]} {[%emt 00:00:08]} 0-1